bitfinex/quotes_SOLUSD_20251202
["timestamp","ask_amount","ask_price","bid_price","bid_amount"]
[1764696248230,0.7,140.21,140.18,12.30159667]
[1764696248520,0.7,140.21,140.19,12.30159667]
[1764696249122,12.38347192,140.23,140.2,12.30159667]
[1764696249301,12.38347192,140.23,140.19,12.30159667]
[1764696249499,0.7,140.22,140.19,12.30159667]
[1764696249914,0.7,140.22,140.2,12.30159667]
[1764696250107,0.7,140.22,140.21,7.1321589]
[1764696250509,0.7,140.22,140.17,8.80994492]
[1764696250724,0.7,140.22,140.19,12.30159667]
[1764696251032,0.7,140.22,140.18,12.30159667]
[1764696251208,0.7,140.22,140.19,12.30159667]
[1764696251521,0.7,140.22,140.17,25.67901544]
[1764696251522,0.7,140.22,140.18,12.30159667]
[1764696252621,0.7,140.22,140.19,7.1331764]
[1764696253128,0.7,140.22,140.19,24.9661174]
[1764696253431,13.00159667,140.22,140.19,7.1331764]
[1764696253812,0.66,140.21,140.19,7.1331764]
[1764696254524,8.62,140.21,140.18,7.13368526]
[1764696254908,0.66,140.2,140.18,7.13368526]
[1764696255113,0.66,140.2,140.18,37.26949508]
[1764696255618,7.96,140.21,140.18,37.26949508]
[1764696255828,8.62,140.21,140.18,37.26949508]
[1764696256125,0.66,140.2,140.18,37.26949508]
[1764696256434,8.62,140.21,140.18,37.26949508]
[1764696256734,8.62,140.21,140.19,12.30159667]
[1764696256909,0.66,140.21,140.2,7.13266761]
[1764696257225,3.72347192,140.23,140.2,24.96433665]
[1764696257416,4.38347192,140.23,140.21,12.30159667]
[1764696257922,0.66,140.22,140.21,12.30159667]
[1764696258317,3.72347192,140.23,140.21,12.97159667]
[1764696258527,3.72347192,140.23,140.22,4.80822531]
[1764696258914,3.72347192,140.23,140.22,29.35982049]
[1764696261632,8.04,140.3,140.22,23.13127294]
[1764696261633,0.1,140.3,140.22,23.13127294]
[1764696261849,0.1,140.3,140.29,17.3412394]
[1764696262038,0.1,140.3,140.29,12.53301409]
[1764696262253,0.1,140.3,140.29,17.3412394]
[1764696262420,0.1,140.3,140.29,12.53301409]
[1764696263865,0.76,140.3,140.29,3.72306917]
[1764696265152,5.56822531,140.3,140.29,3.72306917]
[1764696265736,0.76,140.3,140.29,3.72306917]
[1764696265939,5.56822531,140.3,140.29,3.72306917]
[1764696266325,13.03600985,140.3,140.29,3.72306917]
[1764696266746,0.76,140.3,140.29,3.72306917]
[1764696267046,13.03600985,140.3,140.29,3.72306917]
[1764696267277,13.03600985,140.3,140.24,8.80994492]
[1764696267448,12.93600985,140.29,140.24,8.80994492]
[1764696267832,12.93600985,140.28,140.24,8.80994492]
[1764696268032,12.27600985,140.26,140.24,8.80994492]
[1764696268228,0.1,140.3,140.26,8.80994492]
[1764696268448,35.00287954,140.33,140.3,8.80994492]
[1764696268655,35.00287954,140.33,140.32,4.03601091]
[1764696268949,35.00287954,140.33,140.24,0.71306332]
[1764696269126,35.00287954,140.33,140.2,8.19319752]
[1764696269331,35.00287954,140.33,140.28,12.27600985]
[1764696269732,35.00287954,140.33,140.29,12.27600985]
[1764696270362,35.00287954,140.33,140.26,8.28]
[1764696270654,48.21013302,140.32,140.27,8.80994492]
[1764696271031,48.21013302,140.32,140.26,8.80994492]
[1764696271032,35.93412317,140.32,140.26,8.80994492]
[1764696271237,48.21013302,140.32,140.26,8.80994492]
[1764696271858,12.27600985,140.31,140.25,8.80994492]
[1764696272364,12.27600985,140.31,140.24,8.3]
[1764696272365,7.21199371,140.28,140.23,8.80994492]
[1764696272576,7.21199371,140.26,140.21,8.80994492]
[1764696272735,7.21199371,140.27,140.21,29.99876668]
[1764696272935,0.66,140.3,140.21,8.80994492]
[1764696273131,7.21199371,140.26,140.2,8.80994492]
[1764696273367,8.3,140.28,140.2,8.80994492]
[1764696273567,7.21199371,140.26,140.19,7.21199371]
[1764696273783,8.3,140.28,140.19,16.02193863]
[1764696273954,7.21199371,140.26,140.19,21.06552428]
[1764696274138,0.68,140.27,140.2,7.21199371]
[1764696274336,7.21199371,140.25,140.18,16.02193863]
[1764696274538,7.21199371,140.23,140.16,7.21199371]
[1764696274830,8.3,140.24,140.16,21.05718428]
[1764696275144,7.21199371,140.21,140.15,26.37940681]
[1764696275660,7.89199371,140.21,140.16,8.80994492]
[1764696275975,7.21199371,140.19,140.15,26.37940681]
[1764696276474,7.89199371,140.19,140.16,8.80994492]
[1764696276659,0.68,140.19,140.16,30.35324542]
[1764696276855,0.68,140.19,140.16,8.80994492]
[1764696277059,7.21199371,140.18,140.16,8.80994492]
[1764696277247,0.68,140.19,140.15,26.37940681]
[1764696277453,16.19199371,140.19,140.14,8.80994492]
[1764696277855,0.68,140.18,140.12,7.21199371]
[1764696278058,7.89199371,140.18,140.13,8.80994492]
[1764696278264,0.68,140.17,140.13,7.21199371]
[1764696278564,0.68,140.18,140.13,7.21199371]
[1764696278758,0.68,140.18,140.1,8.80994492]
[1764696278970,0.68,140.22,140.18,8.80994492]
[1764696279442,7.89199371,140.22,140.19,0.5]
[1764696279641,0.68,140.22,140.19,0.5]
[1764696279861,0.68,140.21,140.19,7.71199371]
[1764696280066,0.68,140.21,140.2,7.21199371]
[1764696280267,0.68,140.26,140.21,8.80994492]
[1764696280458,0.68,140.26,140.23,7.21199371]
[1764696280842,0.68,140.26,140.23,8.80994492]
[1764696281240,0.68,140.26,140.21,7.21199371]
[1764696282156,7.21199371,140.25,140.2,8.80994492]
[1764696282342,7.21199371,140.24,140.19,7.71199371]
[1764696282547,7.89199371,140.25,140.2,8.80994492]
[1764696282745,0.68,140.25,140.2,16.02193863]
[1764696282967,0.68,140.24,140.21,7.21199371]
[1764696283153,0.68,140.24,140.22,7.21199371]
[1764696283479,0.68,140.24,140.21,7.21199371]
[1764696283642,0.68,140.24,140.22,7.21199371]
[1764696283842,0.68,140.24,140.21,7.21199371]
[1764696284181,15.02263267,140.24,140.2,8.80994492]
[1764696284475,7.89199371,140.24,140.2,8.80994492]
[1764696284639,7.89199371,140.23,140.19,0.5]
[1764696284841,7.21199371,140.21,140.13,21.77693152]
[1764696285072,7.21199371,140.21,140.04,12.8679775]
[1764696285073,7.21199371,140.2,140.16,8.80994492]
[1764696285267,15.49199371,140.2,140.11,0.5]
[1764696285454,7.21199371,140.18,140.12,7.21199371]
[1764696285771,7.21199371,140.18,140.13,7.21199371]
[1764696285974,0.68,140.17,140.14,7.21199371]
[1764696286174,0.68,140.17,140.09,0.5]
[1764696286353,0.68,140.17,140.14,8.80994492]
[1764696286550,7.89199371,140.17,140.12,7.21199371]
[1764696286753,7.89199371,140.17,140.11,28.65495131]
[1764696286754,7.21199371,140.16,140.11,28.65495131]
[1764696287086,15.49199371,140.15,140.1,7.21199371]
[1764696287265,16.17199371,140.15,140.1,7.21199371]
[1764696287583,0.68,140.14,140.11,16.02193863]
[1764696287761,8.96,140.16,140.13,7.21199371]
[1764696287957,8.28,140.16,140.13,7.21199371]
[1764696288161,0.68,140.15,140.13,7.21199371]
[1764696289476,0.68,140.15,140.12,7.21199371]
[1764696289659,0.68,140.15,140.1,30.09681428]
[1764696290073,7.81557971,140.15,140.07,9.00994492]
[1764696290275,0.68,140.15,140.14,7.21199371]
[1764696290583,8.96,140.17,140.14,7.21199371]
[1764696290787,8.96,140.17,140.15,7.21199371]
[1764696291282,0.68,140.17,140.15,7.21199371]
[1764696291482,0.68,140.16,140.15,7.21199371]
[1764696291654,0.68,140.19,140.15,7.21199371]
[1764696291856,0.68,140.19,140.17,7.21199371]
[1764696292267,0.68,140.19,140.16,7.21199371]
[1764696293252,0.68,140.19,140.17,7.21199371]
[1764696293474,0.68,140.19,140.16,7.21199371]
[1764696293882,0.68,140.19,140.17,7.21199371]
[1764696294077,0.68,140.19,140.18,7.21199371]
[1764696294398,0.68,140.21,140.18,7.21199371]
[1764696294684,0.68,140.21,140.2,7.21199371]
[1764696294848,0.68,140.21,140.13,7.21199371]
[1764696295054,0.68,140.21,140.18,7.21199371]
[1764696295354,0.68,140.21,140.19,7.21199371]
[1764696295679,0.68,140.21,140.15,8.80994492]
[1764696295978,0.68,140.21,140.19,7.21199371]
[1764696296182,0.68,140.21,140.15,9.30994492]
[1764696296354,0.68,140.21,140.19,7.21199371]
[1764696297959,8.26,140.22,140.2,7.21199371]
[1764696298271,4.40418858,140.23,140.21,7.21199371]
[1764696298460,0.68,140.25,140.22,7.21199371]
[1764696298666,4.40271088,140.28,140.24,7.21199371]
[1764696298874,0.68,140.27,140.23,8.80994492]
[1764696299081,0.68,140.27,140.2,0.5]
[1764696299279,0.68,140.27,140.24,7.21199371]
[1764696299586,7.80911443,140.27,140.24,7.21199371]
[1764696299757,0.68,140.27,140.24,7.21199371]
[1764696300082,8.94,140.27,140.26,7.21199371]
[1764696300979,8.94,140.27,140.25,7.21199371]
[1764696301180,8.94,140.27,140.21,9.30994492]
[1764696301181,8.26,140.27,140.26,7.21199371]
[1764696301362,3.72254273,140.3,140.26,7.21199371]
[1764696301363,0.68,140.3,140.26,7.21199371]
[1764696301682,0.68,140.32,140.29,7.21199371]
[1764696301884,8.94,140.34,140.31,7.21199371]
[1764696302263,0.68,140.33,140.3,7.21199371]
[1764696303286,0.68,140.33,140.31,7.21199371]
[1764696303583,8.26,140.34,140.32,7.21199371]
[1764696303783,44.32107877,140.35,140.33,7.21199371]
[1764696304082,44.32107877,140.35,140.34,7.21199371]
[1764696304287,45.00107877,140.35,140.32,16.308864]
[1764696304471,0.68,140.34,140.32,23.52085771]
[1764696304672,0.68,140.34,140.33,7.21199371]
[1764696305280,0.68,140.34,140.27,30.74861925]
[1764696305583,0.68,140.34,140.31,7.21199371]
[1764696305760,52.56107877,140.35,140.33,7.21199371]
[1764696305963,44.32107877,140.35,140.31,8.80994492]
[1764696306181,0.68,140.34,140.33,7.21199371]
[1764696307489,44.32107877,140.35,140.33,7.21199371]
[1764696307677,0.68,140.34,140.33,7.21199371]
[1764696308390,0.68,140.34,140.3,23.52085771]
[1764696308689,8.24,140.33,140.3,23.52085771]
[1764696309061,0.68,140.32,140.3,23.52085771]
[1764696309459,0.68,140.32,140.3,16.308864]
[1764696309780,0.68,140.32,140.3,23.52085771]
[1764696310167,8.92,140.34,140.31,7.21199371]
[1764696310385,8.92,140.34,140.33,7.21199371]
[1764696310762,0.68,140.34,140.32,7.21199371]
[1764696311183,8.92,140.34,140.32,7.21199371]
[1764696311378,0.68,140.34,140.31,7.21199371]
[1764696311587,0.68,140.33,140.3,16.308864]
[1764696312278,0.68,140.33,140.31,7.21199371]
[1764696312796,8.22,140.33,140.32,7.21199371]
[1764696313299,8.92,140.33,140.31,7.21199371]
[1764696313595,0.7,140.32,140.3,23.52085771]
[1764696314198,0.7,140.32,140.31,7.21199371]
[1764696315297,8.22,140.33,140.31,7.21199371]
[1764696315499,8.92,140.33,140.31,7.21199371]
[1764696315686,8.22,140.33,140.3,16.308864]
[1764696315876,8.22,140.33,140.31,7.21199371]
[1764696316273,44.32107877,140.35,140.32,7.21199371]
[1764696316573,44.32107877,140.35,140.34,7.21199371]
[1764696317170,44.32107877,140.35,140.34,16.02193863]
[1764696317374,0.1,140.36,140.34,16.52193863]
[1764696317689,0.1,140.36,140.35,24.02085771]
[1764696318003,0.1,140.36,140.35,16.308864]
[1764696318172,0.1,140.36,140.35,32.83080263]
[1764696318572,0.1,140.36,140.35,32.33080263]
[1764696319814,0.1,140.36,140.35,16.308864]
[1764696319973,0.1,140.36,140.35,23.52085771]
[1764696320371,0.1,140.36,140.35,16.308864]
[1764696320583,0.8,140.36,140.35,16.308864]
[1764696320791,7.92483706,140.36,140.29,0.5]
[1764696321011,8.2,140.35,140.33,7.21199371]
[1764696321295,8.2,140.35,140.34,7.21199371]
[1764696321473,0.1,140.36,140.32,8.80994492]
[1764696321677,8.3,140.36,140.35,7.21199371]
[1764696321903,9.0,140.36,140.35,7.21199371]
[1764696322075,0.1,140.36,140.35,7.21199371]
[1764696322883,0.1,140.36,140.35,16.308864]
[1764696324803,0.1,140.36,140.35,23.43390853]
[1764696325210,0.1,140.36,140.35,30.64590224]
[1764696325582,0.1,140.36,140.35,39.95584716]
[1764696326102,0.1,140.36,140.35,23.64698316]
[1764696327582,0.1,140.36,140.35,23.14698316]
[1764696327781,0.1,140.36,140.35,23.64698316]
[1764696327979,3.71860631,140.43,140.39,8.80994492]
[1764696328219,0.8,140.46,140.42,7.21199371]
[1764696328506,3.71771295,140.45,140.44,7.21199371]
[1764696328880,4.41771295,140.45,140.44,7.21199371]
[1764696329702,4.41771295,140.45,140.43,14.33273835]
[1764696330091,3.71771295,140.45,140.43,14.33273835]
[1764696330292,3.71771295,140.45,140.44,7.21199371]
[1764696330490,3.71771295,140.45,140.41,16.308864]
[1764696330691,3.71771295,140.45,140.43,7.21199371]
[1764696330898,0.7,140.44,140.43,7.21199371]
[1764696331087,0.7,140.44,140.43,14.33297925]
[1764696331292,0.1,140.46,140.45,16.308864]
[1764696331605,0.1,140.46,140.45,23.52085771]
[1764696332387,0.1,140.46,140.45,16.308864]
[1764696332605,0.1,140.46,140.45,23.52085771]
[1764696333310,0.8,140.46,140.45,7.21199371]
[1764696333512,0.8,140.46,140.4,16.308864]
[1764696333915,0.8,140.46,140.44,7.21199371]
[1764696334114,0.8,140.46,140.45,7.21199371]
[1764696334416,0.8,140.46,140.45,12.24187303]
[1764696334788,8.98,140.46,140.44,12.24187303]
[1764696335209,0.7,140.45,140.42,7.12149266]
[1764696335620,0.7,140.45,140.42,16.308864]
[1764696335621,7.82005797,140.45,140.42,16.308864]
[1764696335998,0.7,140.44,140.42,16.308864]
[1764696336402,0.7,140.44,140.43,12.24187303]
[1764696336699,8.28,140.46,140.43,12.24187303]
[1764696336902,8.28,140.46,140.45,12.24187303]
[1764696337505,8.97,140.46,140.45,12.24187303]
[1764696337907,0.79,140.46,140.45,12.24187303]
[1764696338113,0.1,140.46,140.45,19.36184455]
[1764696338322,0.1,140.46,140.42,0.5]
[1764696338530,0.79,140.46,140.45,28.55073703]
[1764696338711,0.1,140.46,140.45,12.24187303]
[1764696339318,0.79,140.46,140.45,12.24187303]
[1764696339523,20.15133764,140.46,140.42,16.308864]
[1764696339720,8.85,140.45,140.42,28.55073703]
[1764696339927,8.85,140.45,140.44,12.24187303]
[1764696340126,8.87,140.45,140.44,12.24187303]
[1764696341227,8.87,140.45,140.42,23.42996605]
[1764696341526,8.18,140.45,140.44,12.24187303]
[1764696341694,15.30009416,140.45,140.42,12.24187303]
[1764696341901,8.18,140.45,140.42,12.24187303]
[1764696342097,0.65,140.44,140.42,12.24187303]
[1764696342301,0.65,140.44,140.41,16.308864]
[1764696342531,0.65,140.44,140.41,28.55073703]
[1764696342833,0.65,140.44,140.42,12.24187303]
[1764696343934,15.93056013,140.44,140.42,12.24187303]
[1764696344116,8.81,140.44,140.42,12.24187303]
[1764696344504,0.65,140.43,140.4,12.24187303]
[1764696345420,0.65,140.43,140.42,12.24187303]
[1764696345600,8.81,140.43,140.42,12.24187303]
[1764696345807,8.81,140.43,140.41,12.24187303]
[1764696346111,0.65,140.42,140.38,41.24119053]
[1764696346311,0.65,140.42,140.41,12.24187303]
[1764696346915,0.65,140.42,140.38,41.24119053]
[1764696347128,0.65,140.42,140.41,12.24187303]
[1764696347333,0.65,140.42,140.4,12.24187303]
[1764696347625,0.65,140.42,140.39,12.24187303]
[1764696347822,7.77152956,140.42,140.39,12.24187303]
[1764696348224,0.65,140.41,140.39,12.24187303]
[1764696348434,8.16,140.4,140.38,12.24187303]
[1764696348634,8.16,140.4,140.37,12.24187303]
[1764696348822,0.65,140.39,140.37,12.24187303]
[1764696349135,0.65,140.39,140.38,12.24187303]
[1764696349631,0.65,140.39,140.35,23.43375763]
[1764696349856,7.77307858,140.39,140.33,7.12606]
[1764696350009,0.65,140.39,140.36,12.24187303]
[1764696350206,8.81,140.38,140.33,41.750074]
[1764696350708,0.65,140.37,140.36,12.24187303]
[1764696351329,8.79,140.37,140.36,12.24187303]
[1764696351834,0.65,140.39,140.36,19.36640993]
[1764696352008,0.65,140.39,140.38,12.24187303]
[1764696352210,8.79,140.39,140.38,12.24187303]
[1764696353014,8.79,140.39,140.37,12.24187303]
[1764696353212,0.65,140.38,140.36,12.24187303]
[1764696356746,7.77377523,140.38,140.34,16.308864]
[1764696356924,25.5825799,140.38,140.34,28.55073703]
[1764696357115,0.65,140.37,140.34,28.55073703]
[1764696357315,8.14,140.36,140.34,26.55073703]
[1764696357749,0.65,140.35,140.34,26.55073703]
[1764696358125,0.65,140.35,140.33,12.24187303]
[1764696358418,0.65,140.35,140.32,12.24187303]
[1764696358727,7.77529489,140.35,140.32,12.24187303]
[1764696358931,7.77529489,140.35,140.33,12.24187303]
[1764696359150,0.65,140.34,140.32,12.24187303]
[1764696359311,8.12,140.33,140.32,12.24187303]
[1764696359740,8.77,140.33,140.32,12.24187303]
[1764696360453,8.77,140.33,140.29,7.12777266]
[1764696360655,0.65,140.32,140.27,21.52813264]
[1764696360953,0.65,140.32,140.29,12.24187303]
[1764696360954,7.77690305,140.32,140.29,12.24187303]
[1764696361114,0.65,140.32,140.27,23.43777107]
[1764696361314,8.12,140.33,140.27,23.43777107]
[1764696361315,0.65,140.31,140.3,12.24187303]
[1764696361531,0.65,140.31,140.25,0.5]
[1764696361732,8.12,140.3,140.29,12.24187303]
[1764696362243,8.77,140.3,140.27,12.24187303]
[1764696362418,8.12,140.29,140.28,12.24187303]
[1764696362740,8.77,140.29,140.28,12.24187303]
[1764696362944,15.89819552,140.29,140.27,12.24187303]
[1764696363145,8.77,140.29,140.27,12.24187303]
[1764696363451,0.65,140.31,140.28,12.24187303]
[1764696363739,8.12,140.31,140.3,12.24187303]
[1764696364630,8.77,140.31,140.28,16.308864]
[1764696364832,0.65,140.3,140.29,12.24187303]
[1764696365235,3.72152133,140.32,140.29,12.74187303]
[1764696365518,0.65,140.31,140.28,16.308864]
[1764696365732,0.65,140.31,140.29,12.24187303]
[1764696366745,0.65,140.31,140.29,16.308864]
[1764696367121,0.65,140.31,140.29,35.67875663]
[1764696367523,7.12658116,140.32,140.29,28.55073703]
[1764696367748,8.12,140.31,140.29,16.308864]
[1764696368359,0.65,140.3,140.29,16.308864]
[1764696368644,0.65,140.3,140.28,12.24187303]
[1764696368844,0.65,140.3,140.28,28.55073703]
[1764696369542,0.65,140.3,140.28,16.308864]
[1764696369932,0.65,140.3,140.28,28.55073703]
[1764696370130,0.65,140.3,140.28,16.308864]
[1764696370449,0.65,140.3,140.28,28.55073703]
[1764696370741,7.77763438,140.3,140.28,16.308864]
[1764696370941,7.77763438,140.3,140.26,19.37117856]
[1764696371248,0.65,140.29,140.28,16.308864]
[1764696371549,0.65,140.29,140.24,12.24187303]
[1764696371550,12.89187303,140.29,140.24,12.24187303]
[1764696371749,20.36187303,140.28,140.24,16.308864]
[1764696371935,21.05187303,140.28,140.23,12.24187303]
[1764696372141,0.69,140.27,140.23,12.24187303]
[1764696372366,0.69,140.27,140.24,12.24187303]
[1764696372548,0.69,140.27,140.21,8.80994492]
[1764696372549,12.93187303,140.27,140.22,21.07172014]
[1764696372753,0.69,140.27,140.21,12.24187303]
[1764696372934,7.13012477,140.25,140.21,28.55073703]
[1764696373247,8.12,140.24,140.21,28.55073703]
[1764696373434,21.05187303,140.24,140.19,12.24187303]
[1764696373625,0.69,140.23,140.19,12.24187303]
[1764696373825,0.69,140.23,140.19,28.55073703]
[1764696374238,12.93187303,140.23,140.18,12.24187303]
[1764696374845,0.69,140.22,140.18,16.308864]
[1764696375047,15.2521589,140.21,140.18,28.55073703]
[1764696375251,15.2521589,140.21,140.18,12.24187303]
[1764696375451,0.69,140.2,140.18,12.24187303]
[1764696375846,12.24187303,140.25,140.19,12.24187303]
[1764696376054,8.81,140.24,140.18,25.46786333]
[1764696376257,8.12,140.23,140.22,12.24187303]
[1764696376438,8.12,140.23,140.17,16.308864]
[1764696376756,12.93187303,140.22,140.17,12.24187303]
[1764696377046,7.1321589,140.21,140.17,12.24187303]
[1764696377257,8.12,140.2,140.17,12.24187303]
[1764696377440,8.81,140.2,140.18,12.24187303]
[1764696378644,8.81,140.2,140.19,12.24187303]
[1764696378843,7.82022535,140.25,140.19,12.24187303]
[1764696379049,8.12,140.24,140.23,12.24187303]
[1764696379249,8.12,140.24,140.21,12.24187303]
[1764696379250,8.81,140.24,140.21,12.24187303]
[1764696379561,8.81,140.24,140.16,8.80994492]
[1764696379562,12.24187303,140.22,140.14,7.13536408]
[1764696379739,20.36187303,140.21,140.15,12.24187303]
[1764696379933,20.36187303,140.21,140.16,12.24187303]
[1764696380144,12.93187303,140.2,140.15,12.24187303]
[1764696380453,7.1331764,140.19,140.15,12.24187303]
[1764696380662,8.12,140.18,140.15,12.24187303]
[1764696380835,8.81,140.18,140.15,12.24187303]
[1764696382444,15.94400212,140.18,140.15,12.24187303]
[1764696382643,15.25400212,140.18,140.15,12.24187303]
[1764696382961,15.94400212,140.18,140.15,12.24187303]
[1764696384549,15.25400212,140.18,140.14,19.37727323]
[1764696384754,15.94400212,140.18,140.15,12.24187303]
[1764696384948,0.69,140.17,140.13,16.308864]
[1764696385144,17.83175251,140.2,140.15,12.24187303]
[1764696385344,8.1,140.19,140.17,12.24187303]
[1764696385551,8.79,140.19,140.16,12.24187303]
[1764696386055,15.23338559,140.19,140.15,12.24187303]
[1764696386265,0.69,140.18,140.15,12.24187303]
[1764696386450,7.13419419,140.17,140.15,12.24187303]
[1764696386641,8.1,140.16,140.14,16.308864]
[1764696386959,8.79,140.16,140.14,28.55073703]
[1764696387163,8.1,140.16,140.14,28.55073703]
[1764696388162,15.23477715,140.16,140.14,28.55073703]
[1764696388361,8.1,140.16,140.14,28.55073703]
[1764696389466,8.1,140.16,140.15,12.24187303]
[1764696389641,8.1,140.16,140.14,28.55073703]
[1764696389835,15.9248244,140.16,140.14,16.308864]
[1764696390661,15.2348244,140.16,140.13,12.24187303]
[1764696390965,0.69,140.15,140.13,12.24187303]
[1764696391268,15.9248244,140.16,140.13,12.24187303]
[1764696392060,8.79,140.16,140.14,12.24187303]
[1764696392566,8.1,140.16,140.15,12.24187303]
[1764696392763,8.1,140.16,140.14,12.24187303]
[1764696394555,15.94508879,140.16,140.12,28.55073703]
[1764696395066,8.1,140.16,140.14,12.24187303]
[1764696395272,15.23494601,140.16,140.14,12.24187303]
[1764696395454,15.94494601,140.16,140.13,12.24187303]
[1764696396362,15.94494601,140.16,140.13,7.22318535]
[1764696396872,15.23494601,140.16,140.13,7.22318535]
[1764696397043,0.71,140.15,140.12,23.53204935]
[1764696397764,0.71,140.15,140.12,16.308864]
[1764696397947,7.84558599,140.15,140.12,23.53204935]
[1764696398356,0.71,140.14,140.12,19.39130157]
[1764696398767,8.08,140.13,140.12,16.308864]
[1764696399363,8.08,140.13,140.12,26.5280415]
[1764696399667,8.08,140.13,140.12,16.308864]
[1764696400268,8.08,140.13,140.12,23.44560393]
[1764696400654,0.71,140.15,140.12,23.44560393]
[1764696400862,8.08,140.14,140.12,16.308864]
[1764696401063,8.08,140.14,140.12,23.44551617]
[1764696401576,0.71,140.13,140.08,7.13877784]
[1764696401760,0.71,140.13,140.1,3.08243757]
[1764696401964,0.71,140.13,140.11,3.08243757]
[1764696402351,0.71,140.13,140.08,17.8469446]
[1764696402555,7.84637024,140.13,140.1,19.39130157]
[1764696402767,7.84637024,140.13,140.09,3.08243757]
[1764696403079,0.67,140.12,140.08,3.08243757]
[1764696403286,8.08,140.11,140.07,0.2]
[1764696403491,8.08,140.11,140.07,3.28243757]
[1764696403692,0.67,140.1,140.07,3.28243757]
[1764696403874,0.67,140.1,140.07,0.2]
[1764696404266,0.67,140.1,140.07,3.28243757]
[1764696404570,7.80805058,140.1,140.07,7.43002973]
[1764696404875,0.67,140.1,140.08,7.23002973]
[1764696405181,0.67,140.09,140.08,7.23002973]
[1764696405693,0.67,140.09,140.07,7.43002973]
[1764696405887,7.807432,140.11,140.08,7.23002973]
[1764696406060,8.75,140.1,140.08,7.23002973]
[1764696406460,0.67,140.09,140.08,7.23002973]
[1764696407079,17.84122279,140.13,140.08,7.23002973]
[1764696407277,7.80710146,140.12,140.1,7.23002973]
[1764696407483,15.88710146,140.12,140.1,7.23002973]
[1764696407680,8.75,140.12,140.11,7.23002973]
[1764696407902,0.67,140.12,140.11,7.23002973]
[1764696408191,8.75,140.12,140.11,7.23002973]
[1764696408395,15.88673993,140.12,140.11,7.23002973]
[1764696408963,8.08,140.12,140.11,7.23002973]
[1764696409169,8.75,140.12,140.11,7.23002973]
[1764696409385,15.88673993,140.12,140.11,7.23002973]
[1764696410186,8.08,140.12,140.11,7.23002973]
[1764696410786,8.08,140.12,140.1,7.1377253]
[1764696410968,8.08,140.12,140.11,7.23002973]
[1764696411684,0.67,140.16,140.11,23.53889373]
[1764696411990,8.08,140.14,140.11,16.808864]
[1764696412560,15.21573933,140.14,140.11,16.808864]
[1764696412764,15.21573933,140.14,140.11,16.308864]
[1764696413066,15.88573933,140.14,140.12,7.23002973]
[1764696413489,0.67,140.13,140.11,7.23002973]
[1764696413995,0.67,140.13,140.12,7.23002973]
[1764696414782,7.80623064,140.13,140.12,7.23002973]
[1764696415112,15.21579648,140.14,140.12,7.23002973]
[1764696415268,15.88579648,140.14,140.12,7.23002973]
[1764696416311,8.06,140.13,140.12,7.23002973]
[1764696416592,8.73,140.13,140.1,7.23002973]
[1764696416901,7.80674596,140.12,140.1,7.23002973]
[1764696417708,0.67,140.12,140.1,7.23002973]
[1764696417909,0.67,140.12,140.11,7.23002973]
[1764696418801,8.73,140.12,140.11,7.23002973]
[1764696419502,8.73,140.12,140.09,23.44711212]
[1764696419796,0.67,140.14,140.11,7.23002973]
[1764696419984,8.06,140.13,140.11,7.23002973]
[1764696420183,8.73,140.13,140.11,7.23002973]
[1764696420379,8.06,140.13,140.09,23.44711212]
[1764696420588,8.06,140.13,140.11,7.23002973]
[1764696420893,0.67,140.12,140.11,7.23002973]
[1764696421103,0.67,140.12,140.09,23.44711212]
[1764696421104,0.67,140.12,140.1,7.23002973]
[1764696421482,0.67,140.12,140.09,16.308864]
[1764696421677,0.67,140.12,140.09,23.53889373]
[1764696421894,0.67,140.12,140.07,0.2]
[1764696422105,0.67,140.12,140.09,7.23002973]
[1764696422315,8.06,140.11,140.07,23.64803936]
[1764696422482,8.06,140.12,140.1,7.23002973]